[Event "Titled Tuesday Blitz April 12 Early 2022"]
[White "Bowden, Karl"]
[Black "Yurovskykh, Oleksandr"]
[WhiteFideId "400548"]
[BlackFideId "14134020"]
[WhiteElo "2358"]
[BlackElo "2292"]
[Result "0-1"]
[Round "03"]
[TimeControl "180+1"]
[Date "2022.04.13"]
[WhiteClock "0:00:08"]
[BlackClock "0:00:15"]

1. e4 {[%clk 0:03:00]}  d5 {[%clk 0:02:49]} 2. Nc3 {[%clk 0:02:57]}  d4 {[%clk 0:02:48]} 3. Nce2 {[%clk 0:02:57]}  e5 {[%clk 0:02:47]} 4. d3 {[%clk 0:02:57]}  c5 {[%clk 0:02:46]} 5. f4 {[%clk 0:02:55]}  Nc6 {[%clk 0:02:45]} 6. Nf3 {[%clk 0:02:55]}  Bd6 {[%clk 0:02:39]} 7. g3 {[%clk 0:02:55]}  Nge7 {[%clk 0:02:37]} 8. Bg2 {[%clk 0:02:55]}  f6 {[%clk 0:02:37]} 9. O-O {[%clk 0:02:54]}  Be6 {[%clk 0:02:38]} 10. f5 {[%clk 0:02:48]}  Bf7 {[%clk 0:02:38]} 11. g4 {[%clk 0:02:48]}  g5 {[%clk 0:02:29]} 12. h4 {[%clk 0:02:12]}  h6 {[%clk 0:02:29]} 13. c4 {[%clk 0:01:42]}  a6 {[%clk 0:02:12]} 14. a4 {[%clk 0:01:32]}  Bc7 {[%clk 0:02:05]} 15. Ng3 {[%clk 0:01:18]}  Nc8 {[%clk 0:02:02]} 16. Rf2 {[%clk 0:01:04]}  Nd6 {[%clk 0:02:00]} 17. Bf1 {[%clk 0:01:03]}  Kd7 {[%clk 0:01:56]} 18. Rh2 {[%clk 0:01:02]}  Ba5 {[%clk 0:01:53]} 19. Qe2 {[%clk 0:00:35]}  Bb4 {[%clk 0:01:39]} 20. Bd2 {[%clk 0:00:30]}  Bxd2 {[%clk 0:01:38]} 21. Qxd2 {[%clk 0:00:30]}  Qa5 {[%clk 0:01:32]} 22. Qc1 {[%clk 0:00:29]}  Qd8 {[%clk 0:01:12]} 23. Be2 {[%clk 0:00:28]}  Qe7 {[%clk 0:01:11]} 24. Bd1 {[%clk 0:00:28]}  b6 {[%clk 0:01:11]} 25. Qd2 {[%clk 0:00:28]}  Rag8 {[%clk 0:01:10]} 26. hxg5 {[%clk 0:00:25]}  hxg5 {[%clk 0:01:10]} 27. b3 {[%clk 0:00:25]}  Qd8 {[%clk 0:01:09]} 28. Ra2 {[%clk 0:00:25]}  Rxh2 {[%clk 0:01:08]} 29. Qxh2 {[%clk 0:00:24]}  Rh8 {[%clk 0:01:08]} 30. Qg2 {[%clk 0:00:23]}  Nb4 {[%clk 0:01:06]} 31. Qf1 {[%clk 0:00:23]}  Kc7 {[%clk 0:01:00]} 32. Rh2 {[%clk 0:00:22]}  Rxh2 {[%clk 0:00:57]} 33. Nxh2 {[%clk 0:00:21]}  b5 {[%clk 0:00:56]} 34. axb5 {[%clk 0:00:21]}  axb5 {[%clk 0:00:56]} 35. Nf3 {[%clk 0:00:21]}  Qh8 {[%clk 0:00:52]} 36. Kg2 {[%clk 0:00:19]}  Kb6 {[%clk 0:00:47]} 37. Be2 {[%clk 0:00:19]}  Nc2 {[%clk 0:00:46]} 38. Qf2 {[%clk 0:00:17]}  Ne3+ {[%clk 0:00:45]} 39. Kg1 {[%clk 0:00:17]}  Qa8 {[%clk 0:00:44]} 40. Nf1 {[%clk 0:00:17]}  Qa1 {[%clk 0:00:42]} 41. Qg3 {[%clk 0:00:15]}  bxc4 {[%clk 0:00:22]} 42. bxc4 {[%clk 0:00:14]}  Nxf1 {[%clk 0:00:19]} 43. Bxf1 {[%clk 0:00:14]}  Qd1 {[%clk 0:00:19]} 44. Qf2 {[%clk 0:00:10]}  Be8 {[%clk 0:00:16]} 45. Kg2 {[%clk 0:00:10]}  Ba4 {[%clk 0:00:15]} 46. Be2 {[%clk 0:00:11]}  Qc2 {[%clk 0:00:15]} 47. Qf1 {[%clk 0:00:09]}  Bc6 {[%clk 0:00:15]} 48. Qa1 {[%clk 0:00:09]}  Nxe4 {[%clk 0:00:14]} 49. dxe4 {[%clk 0:00:08]}  Qxe2+ {[%clk 0:00:15]} 0-1


[Site "https://www.chess.com"]

[Event "Titled Tuesday Blitz April 12 Early 2022"]
[White "Buscar, Michael"]
[Black "Yang, Kaiqi"]
[WhiteFideId "2603616"]
[BlackFideId "8604398"]
[WhiteElo "2010"]
[BlackElo "2373"]
[Result "0-1"]
[Round "03"]
[TimeControl "180+1"]
[Date "2022.04.13"]
[WhiteClock "0:00:03"]
[BlackClock "0:00:06"]

1. Nf3 {[%clk 0:02:51]}  Nf6 {[%clk 0:02:59]} 2. g3 {[%clk 0:02:50]}  g6 {[%clk 0:03:00]} 3. Bg2 {[%clk 0:02:50]}  Bg7 {[%clk 0:03:00]} 4. O-O {[%clk 0:02:51]}  O-O {[%clk 0:03:01]} 5. c4 {[%clk 0:02:51]}  d6 {[%clk 0:02:59]} 6. d3 {[%clk 0:02:51]}  e5 {[%clk 0:02:58]} 7. Nc3 {[%clk 0:02:48]}  Nc6 {[%clk 0:02:59]} 8. Rb1 {[%clk 0:02:49]}  a5 {[%clk 0:02:59]} 9. a3 {[%clk 0:02:50]}  h6 {[%clk 0:02:41]} 10. b4 {[%clk 0:02:48]}  axb4 {[%clk 0:02:42]} 11. axb4 {[%clk 0:02:49]}  Be6 {[%clk 0:02:42]} 12. b5 {[%clk 0:02:49]}  Ne7 {[%clk 0:02:41]} 13. Ne1 {[%clk 0:02:50]}  Qc8 {[%clk 0:02:41]} 14. Nc2 {[%clk 0:02:50]}  Bh3 {[%clk 0:02:40]} 15. Ne3 {[%clk 0:02:44]}  h5 {[%clk 0:02:30]} 16. Ncd5 {[%clk 0:02:34]}  Nfxd5 {[%clk 0:02:27]} 17. Nxd5 {[%clk 0:02:13]}  Nxd5 {[%clk 0:02:26]} 18. cxd5 {[%clk 0:02:13]}  h4 {[%clk 0:02:20]} 19. Rb4 {[%clk 0:02:02]}  Bxg2 {[%clk 0:02:13]} 20. Kxg2 {[%clk 0:02:02]}  h3+ {[%clk 0:02:11]} 21. Kg1 {[%clk 0:02:02]}  Ra1 {[%clk 0:01:49]} 22. Qc2 {[%clk 0:01:55]}  Qd7 {[%clk 0:01:43]} 23. Bd2 {[%clk 0:01:19]}  Rxf1+ {[%clk 0:01:40]} 24. Kxf1 {[%clk 0:01:19]}  Ra8 {[%clk 0:01:27]} 25. Qc1 {[%clk 0:01:15]}  Ra5 {[%clk 0:00:55]} 26. f3 {[%clk 0:00:42]}  Rxb5 {[%clk 0:00:34]} 27. Ra4 {[%clk 0:00:39]}  Rxd5 {[%clk 0:00:30]} 28. Ra7 {[%clk 0:00:31]}  Rc5 {[%clk 0:00:26]} 29. Qb1 {[%clk 0:00:23]}  Rb5 {[%clk 0:00:25]} 30. Qa1 {[%clk 0:00:21]}  Qc6 {[%clk 0:00:19]} 31. Kf2 {[%clk 0:00:18]}  e4 {[%clk 0:00:15]} 32. Ra8+ {[%clk 0:00:08]}  Kh7 {[%clk 0:00:15]} 33. Qa2 {[%clk 0:00:07]}  d5 {[%clk 0:00:10]} 34. dxe4 {[%clk 0:00:04]}  Rb2 {[%clk 0:00:09]} 35. Qa5 {[%clk 0:00:03]}  b6 {[%clk 0:00:06]} 0-1


[Site "https://www.chess.com"]

[Event "Titled Tuesday Blitz April 12 Early 2022"]
[White "Butti, Enrique"]
[Black "Yanayt, Eugene"]
[WhiteFideId "3700470"]
[BlackFideId "2020165"]
[WhiteElo "2080"]
[BlackElo "2046"]
[Result "1-0"]
[Round "03"]
[TimeControl "180+1"]
[Date "2022.04.13"]
[WhiteClock "0:00:09"]
[BlackClock "0:00:19"]

1. d4 {[%clk 0:03:00]}  Nf6 {[%clk 0:02:59]} 2. Nf3 {[%clk 0:03:00]}  g6 {[%clk 0:02:59]} 3. c4 {[%clk 0:02:59]}  Bg7 {[%clk 0:02:58]} 4. Nc3 {[%clk 0:02:58]}  O-O {[%clk 0:02:57]} 5. Bg5 {[%clk 0:02:57]}  d6 {[%clk 0:02:46]} 6. e3 {[%clk 0:02:56]}  c5 {[%clk 0:02:41]} 7. Be2 {[%clk 0:02:50]}  Bf5 {[%clk 0:02:16]} 8. O-O {[%clk 0:02:34]}  Nc6 {[%clk 0:01:57]} 9. d5 {[%clk 0:02:32]}  Nb4 {[%clk 0:01:47]} 10. Nd2 {[%clk 0:02:23]}  Bc2 {[%clk 0:01:14]} 11. Qc1 {[%clk 0:02:17]}  Bd3 {[%clk 0:01:10]} 12. a3 {[%clk 0:02:07]}  Bxe2 {[%clk 0:01:07]} 13. Nxe2 {[%clk 0:02:05]}  Nd3 {[%clk 0:01:07]} 14. Qc2 {[%clk 0:02:04]}  Ne5 {[%clk 0:01:05]} 15. Nc3 {[%clk 0:01:48]}  h6 {[%clk 0:00:55]} 16. Bh4 {[%clk 0:01:41]}  g5 {[%clk 0:00:50]} 17. Bg3 {[%clk 0:01:39]}  Ng6 {[%clk 0:00:40]} 18. f4 {[%clk 0:01:30]}  Ng4 {[%clk 0:00:27]} 19. Nd1 {[%clk 0:01:02]}  gxf4 {[%clk 0:00:22]} 20. exf4 {[%clk 0:01:00]}  Bd4+ {[%clk 0:00:21]} 21. Kh1 {[%clk 0:00:59]}  Ne3 {[%clk 0:00:21]} 22. Nxe3 {[%clk 0:00:57]}  Bxe3 {[%clk 0:00:21]} 23. Rae1 {[%clk 0:00:54]}  Bd4 {[%clk 0:00:21]} 24. Nf3 {[%clk 0:00:46]}  Bg7 {[%clk 0:00:21]} 25. f5 {[%clk 0:00:44]}  Ne5 {[%clk 0:00:21]} 26. Nxe5 {[%clk 0:00:42]}  dxe5 {[%clk 0:00:22]} 27. Qe2 {[%clk 0:00:30]}  f6 {[%clk 0:00:21]} 28. Qg4 {[%clk 0:00:23]}  b5 {[%clk 0:00:20]} 29. b3 {[%clk 0:00:21]}  bxc4 {[%clk 0:00:20]} 30. bxc4 {[%clk 0:00:21]}  Kh8 {[%clk 0:00:20]} 31. Bf2 {[%clk 0:00:20]}  Qe8 {[%clk 0:00:20]} 32. Re3 {[%clk 0:00:19]}  Rg8 {[%clk 0:00:19]} 33. Rh3 {[%clk 0:00:18]}  Bf8 {[%clk 0:00:19]} 34. Qh4 {[%clk 0:00:16]}  Kh7 {[%clk 0:00:19]} 35. Be3 {[%clk 0:00:15]}  Rg5 {[%clk 0:00:19]} 36. Bxg5 {[%clk 0:00:14]}  fxg5 {[%clk 0:00:19]} 37. Qxg5 {[%clk 0:00:14]}  Qf7 {[%clk 0:00:20]} 38. f6 {[%clk 0:00:13]}  exf6 {[%clk 0:00:19]} 39. Rxf6 {[%clk 0:00:13]}  Qg7 {[%clk 0:00:19]} 40. Qf5+ {[%clk 0:00:12]}  Kg8 {[%clk 0:00:18]} 41. Rg6 {[%clk 0:00:11]}  Be7 {[%clk 0:00:18]} 42. Rxg7+ {[%clk 0:00:10]}  Kxg7 {[%clk 0:00:19]} 43. Rg3+ {[%clk 0:00:10]}  Kh8 {[%clk 0:00:19]} 44. Qg6 {[%clk 0:00:09]}  Bf8 {[%clk 0:00:19]} 45. Qg8# {[%clk 0:00:09]} 1-0


[Site "https://www.chess.com"]

[Event "Titled Tuesday Blitz April 12 Early 2022"]
[White "Bychkov, Vladimir"]
[Black "Seul, Georg"]
[WhiteFideId "24151513"]
[BlackFideId "4601653"]
[WhiteElo "2197"]
[BlackElo "2271"]
[Result "1-0"]
[Round "03"]
[TimeControl "180+1"]
[Date "2022.04.13"]
[WhiteClock "0:00:10"]
[BlackClock "0:00:22"]

1. Nf3 {[%clk 0:02:57]}  f5 {[%clk 0:02:58]} 2. d4 {[%clk 0:02:55]}  Nf6 {[%clk 0:02:58]} 3. h4 {[%clk 0:02:55]}  e6 {[%clk 0:02:54]} 4. h5 {[%clk 0:02:55]}  b6 {[%clk 0:02:45]} 5. h6 {[%clk 0:02:50]}  g6 {[%clk 0:02:45]} 6. Bg5 {[%clk 0:02:50]}  Be7 {[%clk 0:02:44]} 7. Nbd2 {[%clk 0:02:49]}  Bb7 {[%clk 0:02:44]} 8. c3 {[%clk 0:02:48]}  O-O {[%clk 0:02:42]} 9. Qc2 {[%clk 0:02:43]}  c5 {[%clk 0:02:37]} 10. Bxf6 {[%clk 0:02:41]}  Bxf6 {[%clk 0:02:37]} 11. e4 {[%clk 0:02:42]}  cxd4 {[%clk 0:02:33]} 12. e5 {[%clk 0:02:36]}  d3 {[%clk 0:02:20]} 13. Bxd3 {[%clk 0:02:19]}  Be7 {[%clk 0:02:20]} 14. Nc4 {[%clk 0:02:10]}  Qc7 {[%clk 0:02:17]} 15. O-O-O {[%clk 0:02:01]}  b5 {[%clk 0:02:10]} 16. Nd6 {[%clk 0:02:00]}  Bxd6 {[%clk 0:02:09]} 17. exd6 {[%clk 0:02:01]}  Qxd6 {[%clk 0:02:09]} 18. Bxb5 {[%clk 0:01:47]}  Qf4+ {[%clk 0:01:58]} 19. Kb1 {[%clk 0:01:45]}  Bxf3 {[%clk 0:01:55]} 20. gxf3 {[%clk 0:01:44]}  d5 {[%clk 0:01:54]} 21. Qe2 {[%clk 0:01:38]}  Kf7 {[%clk 0:01:37]} 22. Rhe1 {[%clk 0:01:28]}  Qd6 {[%clk 0:01:34]} 23. c4 {[%clk 0:01:23]}  a6 {[%clk 0:01:34]} 24. cxd5 {[%clk 0:01:21]}  e5 {[%clk 0:01:31]} 25. Qxe5 {[%clk 0:01:02]}  Qxe5 {[%clk 0:01:27]} 26. Rxe5 {[%clk 0:01:03]}  axb5 {[%clk 0:01:26]} 27. Rde1 {[%clk 0:01:04]}  Ra7 {[%clk 0:01:25]} 28. d6 {[%clk 0:01:00]}  Nc6 {[%clk 0:01:13]} 29. Rxb5 {[%clk 0:00:44]}  Rd8 {[%clk 0:01:12]} 30. Rb6 {[%clk 0:00:35]}  Nd4 {[%clk 0:00:58]} 31. f4 {[%clk 0:00:25]}  Rad7 {[%clk 0:00:55]} 32. a4 {[%clk 0:00:23]}  Rxd6 {[%clk 0:00:54]} 33. Rxd6 {[%clk 0:00:22]}  Rxd6 {[%clk 0:00:54]} 34. b4 {[%clk 0:00:21]}  Ne6 {[%clk 0:00:50]} 35. Kb2 {[%clk 0:00:20]}  Nxf4 {[%clk 0:00:48]} 36. Kb3 {[%clk 0:00:17]}  Ne6 {[%clk 0:00:37]} 37. a5 {[%clk 0:00:16]}  Ke7 {[%clk 0:00:36]} 38. b5 {[%clk 0:00:16]}  Kd7 {[%clk 0:00:35]} 39. a6 {[%clk 0:00:15]}  Kc7 {[%clk 0:00:31]} 40. a7 {[%clk 0:00:14]}  Kb7 {[%clk 0:00:31]} 41. Ra1 {[%clk 0:00:14]}  Nc7 {[%clk 0:00:30]} 42. Kc4 {[%clk 0:00:13]}  Na8 {[%clk 0:00:28]} 43. Kc5 {[%clk 0:00:12]}  Rd7 {[%clk 0:00:27]} 44. Ra6 {[%clk 0:00:09]}  Rc7+ {[%clk 0:00:27]} 45. Kd5 {[%clk 0:00:09]}  Rc8 {[%clk 0:00:26]} 46. Ke6 {[%clk 0:00:09]}  Nb6 {[%clk 0:00:26]} 47. Kf6 {[%clk 0:00:08]}  Ra8 {[%clk 0:00:24]} 48. Kg7 {[%clk 0:00:08]}  g5 {[%clk 0:00:24]} 49. Kxh7 {[%clk 0:00:08]}  g4 {[%clk 0:00:25]} 50. Kg6 {[%clk 0:00:09]}  f4 {[%clk 0:00:25]} 51. Ra3 {[%clk 0:00:09]}  Rxa7 {[%clk 0:00:22]} 52. Rxa7+ {[%clk 0:00:08]}  Kxa7 {[%clk 0:00:22]} 53. h7 {[%clk 0:00:09]}  g3 {[%clk 0:00:22]} 54. fxg3 {[%clk 0:00:09]}  fxg3 {[%clk 0:00:22]} 55. h8=Q {[%clk 0:00:10]} 1-0


[Site "https://www.chess.com"]

[Event "Titled Tuesday Blitz April 12 Early 2022"]
[White "Csonka, Balazs"]
[Black "Di Nicolantonio, Lucas"]
[WhiteFideId "742910"]
[BlackFideId "680460"]
[WhiteElo "2404"]
[BlackElo "2381"]
[Result "1/2-1/2"]
[Round "03"]
[TimeControl "180+1"]
[Date "2022.04.13"]
[WhiteClock "0:00:02"]
[BlackClock "0:00:09"]

1. d4 {[%clk 0:03:00]}  Nf6 {[%clk 0:02:59]} 2. c4 {[%clk 0:03:00]}  e6 {[%clk 0:02:59]} 3. g3 {[%clk 0:02:59]}  d5 {[%clk 0:02:55]} 4. Bg2 {[%clk 0:02:58]}  Be7 {[%clk 0:02:55]} 5. Nf3 {[%clk 0:02:57]}  O-O {[%clk 0:02:56]} 6. O-O {[%clk 0:02:58]}  c6 {[%clk 0:02:55]} 7. Qc2 {[%clk 0:02:56]}  b6 {[%clk 0:02:54]} 8. Rd1 {[%clk 0:02:53]}  Ba6 {[%clk 0:02:49]} 9. b3 {[%clk 0:02:53]}  Nbd7 {[%clk 0:02:47]} 10. Nbd2 {[%clk 0:02:43]}  Rc8 {[%clk 0:02:43]} 11. e4 {[%clk 0:02:41]}  c5 {[%clk 0:02:22]} 12. exd5 {[%clk 0:02:39]}  exd5 {[%clk 0:02:21]} 13. Qf5 {[%clk 0:02:31]}  dxc4 {[%clk 0:02:01]} 14. Nxc4 {[%clk 0:02:29]}  Bb7 {[%clk 0:02:02]} 15. Bb2 {[%clk 0:02:06]}  Be4 {[%clk 0:01:38]} 16. Qf4 {[%clk 0:01:46]}  Qc7 {[%clk 0:01:38]} 17. Qxc7 {[%clk 0:01:12]}  Rxc7 {[%clk 0:01:38]} 18. Re1 {[%clk 0:01:12]}  Re8 {[%clk 0:01:17]} 19. Nh4 {[%clk 0:01:02]}  Bxg2 {[%clk 0:01:16]} 20. Kxg2 {[%clk 0:01:03]}  g6 {[%clk 0:01:02]} 21. Rad1 {[%clk 0:00:59]}  cxd4 {[%clk 0:00:56]} 22. Bxd4 {[%clk 0:00:54]}  Rcc8 {[%clk 0:00:49]} 23. Nf3 {[%clk 0:00:50]}  Bb4 {[%clk 0:00:46]} 24. Rxe8+ {[%clk 0:00:50]}  Rxe8 {[%clk 0:00:46]} 25. Nce5 {[%clk 0:00:44]}  Nxe5 {[%clk 0:00:45]} 26. Nxe5 {[%clk 0:00:44]}  Bc5 {[%clk 0:00:40]} 27. Bxc5 {[%clk 0:00:28]}  Rxe5 {[%clk 0:00:40]} 28. Rd8+ {[%clk 0:00:27]}  Re8 {[%clk 0:00:40]} 29. Rxe8+ {[%clk 0:00:27]}  Nxe8 {[%clk 0:00:41]} 30. Bd4 {[%clk 0:00:12]}  f6 {[%clk 0:00:42]} 31. Kf3 {[%clk 0:00:13]}  Kf7 {[%clk 0:00:42]} 32. a4 {[%clk 0:00:12]}  Ke6 {[%clk 0:00:41]} 33. Ke4 {[%clk 0:00:11]}  Nd6+ {[%clk 0:00:41]} 34. Kd3 {[%clk 0:00:12]}  Nf5 {[%clk 0:00:40]} 35. Bc3 {[%clk 0:00:12]}  Nh6 {[%clk 0:00:35]} 36. f3 {[%clk 0:00:12]}  Nf7 {[%clk 0:00:33]} 37. Bd4 {[%clk 0:00:10]}  f5 {[%clk 0:00:31]} 38. a5 {[%clk 0:00:09]}  Ng5 {[%clk 0:00:17]} 39. axb6 {[%clk 0:00:07]}  axb6 {[%clk 0:00:16]} 40. f4 {[%clk 0:00:06]}  Nf3 {[%clk 0:00:15]} 41. Bxb6 {[%clk 0:00:03]}  Nxh2 {[%clk 0:00:16]} 42. b4 {[%clk 0:00:03]}  Kd5 {[%clk 0:00:13]} 43. b5 {[%clk 0:00:03]}  h6 {[%clk 0:00:06]} 44. Bd4 {[%clk 0:00:02]}  g5 {[%clk 0:00:06]} 45. b6 {[%clk 0:00:03]}  Kc6 {[%clk 0:00:06]} 46. Bg7 {[%clk 0:00:03]}  Ng4 {[%clk 0:00:04]} 47. fxg5 {[%clk 0:00:02]}  hxg5 {[%clk 0:00:05]} 48. Bd4 {[%clk 0:00:03]}  f4 {[%clk 0:00:05]} 49. gxf4 {[%clk 0:00:03]}  gxf4 {[%clk 0:00:06]} 50. Ke4 {[%clk 0:00:04]}  Nh6 {[%clk 0:00:05]} 51. Kxf4 {[%clk 0:00:04]}  Nf7 {[%clk 0:00:06]} 52. Kf5 {[%clk 0:00:04]}  Nd8 {[%clk 0:00:05]} 53. Kf6 {[%clk 0:00:04]}  Kb7 {[%clk 0:00:05]} 54. Ke7 {[%clk 0:00:02]}  Nc6+ {[%clk 0:00:06]} 55. Kd6 {[%clk 0:00:02]}  Nxd4 {[%clk 0:00:07]} 56. Ke5 {[%clk 0:00:03]}  Nc6+ {[%clk 0:00:08]} 57. Ke4 {[%clk 0:00:02]}  Kxb6 {[%clk 0:00:09]} 1/2-1/2


[Site "https://www.chess.com"]

[Event "Titled Tuesday Blitz April 12 Early 2022"]
[White "Czerw, Dawid"]
[Black "parintele_chess"]
[WhiteFideId "1145746"]
[WhiteElo "2125"]
[BlackElo "2253"]
[Result "1-0"]
[Round "03"]
[TimeControl "180+1"]
[Date "2022.04.13"]
[WhiteClock "0:00:40"]
[BlackClock "0:00:16"]

1. d4 {[%clk 0:02:45]}  d5 {[%clk 0:02:57]} 2. c4 {[%clk 0:02:44]}  e6 {[%clk 0:02:57]} 3. Nc3 {[%clk 0:02:44]}  a6 {[%clk 0:02:57]} 4. cxd5 {[%clk 0:02:44]}  exd5 {[%clk 0:02:58]} 5. Bf4 {[%clk 0:02:45]}  c6 {[%clk 0:02:55]} 6. e3 {[%clk 0:02:44]}  Bd6 {[%clk 0:02:54]} 7. Bxd6 {[%clk 0:02:42]}  Qxd6 {[%clk 0:02:54]} 8. Bd3 {[%clk 0:02:43]}  Nf6 {[%clk 0:02:53]} 9. Nge2 {[%clk 0:02:43]}  Bg4 {[%clk 0:02:52]} 10. f3 {[%clk 0:02:41]}  Bh5 {[%clk 0:02:52]} 11. Nf4 {[%clk 0:02:40]}  Bg6 {[%clk 0:02:51]} 12. Nxg6 {[%clk 0:02:40]}  hxg6 {[%clk 0:02:52]} 13. Qe2 {[%clk 0:02:27]}  Rxh2 {[%clk 0:02:49]} 14. Rxh2 {[%clk 0:02:27]}  Qxh2 {[%clk 0:02:50]} 15. O-O-O {[%clk 0:02:28]}  Nbd7 {[%clk 0:02:45]} 16. e4 {[%clk 0:02:28]}  Qf4+ {[%clk 0:02:41]} 17. Kb1 {[%clk 0:02:27]}  O-O-O {[%clk 0:02:36]} 18. Bxa6 {[%clk 0:02:19]}  bxa6 {[%clk 0:02:31]} 19. Qxa6+ {[%clk 0:02:19]}  Kc7 {[%clk 0:02:31]} 20. Rc1 {[%clk 0:02:18]}  Rb8 {[%clk 0:02:15]} 21. e5 {[%clk 0:02:02]}  Qf5+ {[%clk 0:01:55]} 22. Ka1 {[%clk 0:02:00]}  Qf4 {[%clk 0:01:54]} 23. Rc2 {[%clk 0:01:26]}  Qxd4 {[%clk 0:01:38]} 24. exf6 {[%clk 0:01:06]}  Qg1+ {[%clk 0:01:30]} 25. Nb1 {[%clk 0:01:05]}  Qb6 {[%clk 0:01:07]} 26. Qa3 {[%clk 0:00:50]}  gxf6 {[%clk 0:00:59]} 27. Qe7 {[%clk 0:00:49]}  Rf8 {[%clk 0:00:30]} 28. a3 {[%clk 0:00:45]}  c5 {[%clk 0:00:16]} 29. Nc3 {[%clk 0:00:41]}  Qd6 {[%clk 0:00:16]} 30. Nb5+ {[%clk 0:00:40]} 1-0


[Site "https://www.chess.com"]

[Event "Titled Tuesday Blitz April 12 Early 2022"]
[White "Dang, Hoang Son"]
[Black "Calin, Alexandru"]
[WhiteFideId "12402435"]
[BlackFideId "1222961"]
[WhiteElo "2252"]
[BlackElo "2020"]
[Result "1-0"]
[Round "03"]
[TimeControl "180+1"]
[Date "2022.04.13"]
[WhiteClock "0:00:08"]
[BlackClock "0:00:11"]

1. d4 {[%clk 0:03:00]}  d6 {[%clk 0:02:54]} 2. Bf4 {[%clk 0:02:59]}  Nf6 {[%clk 0:02:49]} 3. Nd2 {[%clk 0:02:56]}  Nbd7 {[%clk 0:02:39]} 4. Ngf3 {[%clk 0:02:54]}  Nh5 {[%clk 0:02:35]} 5. Bg5 {[%clk 0:02:51]}  h6 {[%clk 0:02:35]} 6. Bh4 {[%clk 0:02:51]}  g5 {[%clk 0:02:35]} 7. Bg3 {[%clk 0:02:47]}  Nxg3 {[%clk 0:02:28]} 8. hxg3 {[%clk 0:02:47]}  Bg7 {[%clk 0:02:27]} 9. e4 {[%clk 0:02:45]}  e6 {[%clk 0:02:27]} 10. c3 {[%clk 0:02:43]}  b6 {[%clk 0:02:13]} 11. Bc4 {[%clk 0:02:30]}  Bb7 {[%clk 0:02:09]} 12. Qb3 {[%clk 0:02:30]}  Qe7 {[%clk 0:02:06]} 13. O-O-O {[%clk 0:02:29]}  O-O-O {[%clk 0:02:04]} 14. Qa3 {[%clk 0:02:08]}  Kb8 {[%clk 0:02:02]} 15. e5 {[%clk 0:02:06]}  Rhe8 {[%clk 0:01:59]} 16. exd6 {[%clk 0:02:02]}  Qxd6 {[%clk 0:01:52]} 17. Qb3 {[%clk 0:01:51]}  Nf6 {[%clk 0:01:48]} 18. Ne5 {[%clk 0:01:48]}  a6 {[%clk 0:01:41]} 19. Nxf7 {[%clk 0:01:45]}  Qe7 {[%clk 0:01:36]} 20. Nxd8 {[%clk 0:01:45]}  Rxd8 {[%clk 0:01:37]} 21. f3 {[%clk 0:01:35]}  Nd5 {[%clk 0:01:36]} 22. Rhe1 {[%clk 0:01:34]}  Qd6 {[%clk 0:01:35]} 23. Ne4 {[%clk 0:01:33]}  Qd7 {[%clk 0:01:34]} 24. Kb1 {[%clk 0:01:29]}  Ka7 {[%clk 0:01:32]} 25. Ka1 {[%clk 0:01:29]}  Qf7 {[%clk 0:01:27]} 26. Nf2 {[%clk 0:01:24]}  h5 {[%clk 0:01:19]} 27. Nd3 {[%clk 0:01:18]}  b5 {[%clk 0:01:15]} 28. Nc5 {[%clk 0:01:18]}  Bc8 {[%clk 0:01:08]} 29. Bf1 {[%clk 0:00:56]}  Rd6 {[%clk 0:01:08]} 30. c4 {[%clk 0:00:47]}  bxc4 {[%clk 0:01:04]} 31. Bxc4 {[%clk 0:00:48]}  Rb6 {[%clk 0:01:05]} 32. Qa3 {[%clk 0:00:47]}  Nb4 {[%clk 0:01:00]} 33. Re2 {[%clk 0:00:34]}  Qg6 {[%clk 0:00:58]} 34. Qc3 {[%clk 0:00:29]}  Bf8 {[%clk 0:00:53]} 35. a3 {[%clk 0:00:28]}  Nd5 {[%clk 0:00:52]} 36. Qa5 {[%clk 0:00:25]}  h4 {[%clk 0:00:42]} 37. Rc1 {[%clk 0:00:22]}  hxg3 {[%clk 0:00:41]} 38. Bxd5 {[%clk 0:00:18]}  exd5 {[%clk 0:00:41]} 39. Re5 {[%clk 0:00:18]}  Qd6 {[%clk 0:00:38]} 40. Nd3 {[%clk 0:00:15]}  Bg7 {[%clk 0:00:36]} 41. Rxd5 {[%clk 0:00:15]}  Qe7 {[%clk 0:00:29]} 42. Nb4 {[%clk 0:00:15]}  Bb7 {[%clk 0:00:25]} 43. Rdc5 {[%clk 0:00:15]}  Bxd4 {[%clk 0:00:23]} 44. Rxc7 {[%clk 0:00:15]}  Qe6 {[%clk 0:00:17]} 45. Nc6+ {[%clk 0:00:09]}  Rxc6 {[%clk 0:00:11]} 46. R1xc6 {[%clk 0:00:09]}  Qe2 {[%clk 0:00:09]} 47. Rc2 {[%clk 0:00:06]}  Qd1+ {[%clk 0:00:09]} 48. Ka2 {[%clk 0:00:06]}  Bb6 {[%clk 0:00:09]} 49. Qb4 {[%clk 0:00:05]}  Qd5+ {[%clk 0:00:09]} 50. Qb3 {[%clk 0:00:05]}  Qd6 {[%clk 0:00:09]} 51. R7c4 {[%clk 0:00:05]}  Bd5 {[%clk 0:00:09]} 52. R2c3 {[%clk 0:00:06]}  Qe6 {[%clk 0:00:08]} 53. Qb4 {[%clk 0:00:05]}  a5 {[%clk 0:00:08]} 54. Qb5 {[%clk 0:00:05]}  Kb7 {[%clk 0:00:09]} 55. Ka1 {[%clk 0:00:04]}  Qd6 {[%clk 0:00:09]} 56. Rd3 {[%clk 0:00:04]}  Bxc4 {[%clk 0:00:08]} 57. Qxc4 {[%clk 0:00:05]}  Qc6 {[%clk 0:00:08]} 58. Qe4 {[%clk 0:00:05]}  Qxe4 {[%clk 0:00:08]} 59. fxe4 {[%clk 0:00:06]}  Bf2 {[%clk 0:00:08]} 60. Rd5 {[%clk 0:00:07]}  Kc6 {[%clk 0:00:09]} 61. Rxg5 {[%clk 0:00:07]}  a4 {[%clk 0:00:10]} 62. Ra5 {[%clk 0:00:07]}  Kd6 {[%clk 0:00:10]} 63. Rd5+ {[%clk 0:00:07]}  Ke6 {[%clk 0:00:11]} 64. Kb1 {[%clk 0:00:08]} 1-0


[Site "https://www.chess.com"]